{"text_format":"3","workbook":"xlsx","n_sheets":4,"sheets":["Zakres","Przychody","RZS","NPV + wsk_rent"],"not_rendered":{"defined_names":10},"read":"whole","date_system":"1900"}

{"sheet":"Zakres","index":0,"n_rows":37,"n_cols":14,"rows_kept":37,"merged":[[0,0,0,3],[1,0,1,3],[2,0,2,1],[3,0,3,6],[9,0,9,5],[15,0,15,5],[16,0,16,5],[17,0,17,5],[18,0,18,5],[19,0,19,6],[20,0,20,6],[21,0,30,6]]}
["VII. Zakres rzeczowo-finansowy operacji "]
["7.1. Zestawienie przewidywanych wydatków niezbędnych do realizacji operacji",{"$nulls":6},"Tabela pomocnicza nr 1\nnależy wybrac odpowiednio dla każdej pozycji"]
["Wyszczególnienie (rodzaj wydatku)\n",null,"Uzasadnienie ","Parametry techniczne lub jakościowe\ntowarów lub usług \n","Ilość / liczba","Cena\njednostkowa\nw PLN\n","Wartość\nw PLN\n","rodzaj kosztu"]
["wydatki stanowiące podstawę do wyliczenia kwoty pomocy"]
["1.",{"$nulls":5},{"$f":"E5*F5","v":0},"wybierz z listy"]
["2.",{"$nulls":5},{"$f":"E6*F6","v":0},"wybierz z listy"]
["3.",{"$nulls":5},0,"wybierz z listy"]
["4.",{"$nulls":5},{"$f":"E8*F8","v":0},"wybierz z listy"]
["5.",{"$nulls":5},{"$f":"E9*F9","v":0},"wybierz z listy"]
["pozostałe wydatki "]
["1.",{"$nulls":5},{"$f":"E11*F11","v":0},"wybierz z listy"]
["2.",{"$nulls":5},0,"wybierz z listy"]
["3.",{"$nulls":5},0,"wybierz z listy"]
["4.",{"$nulls":5},{"$f":"E14*F14","v":0},"wybierz z listy"]
["5.",{"$nulls":5},0,"wybierz z listy"]
["wydatki ogółem: w tym:",{"$nulls":5},{"$f":"SUM(G5:G9,G11:G15)","v":0}]
["wydatki stanowiące podstawę do wyliczenia kwoty pomocy",{"$nulls":5},{"$f":"SUM(G5:G9)","v":0}]
["pozostałe wydatki ",{"$nulls":5},{"$f":"SUM(G11:G15)","v":0}]
["wnioskowana kwota pomocy",{"$nulls":5},0,{"$nulls":4},"wybierz z listy"]
[{"$nulls":11},"Ki pieniężne",null,{"$f":"SUMIFS(G5:G15,H5:H15,\"Ki pieniężne\")","v":0}]
["Należy opisać przyjęte założenia dotyczące planowanej wielkości kosztów. Należy wskazać kryteria, na podstawie których dokonano wyboru maszyn, urządzeń, sprzętu. \nUzasadnić konieczność dokonania zakupu towarów i usług o podanych parametrach technicznych i jakościowych wraz z uzasadnieniem cen zakupu.",{"$nulls":10},"Ki wkład rzeczowy",null,{"$f":"SUMIFS($G$5:OFFSET(suma1,-1,0),$H$5:OFFSET(suma1,-1,1),$L21)","v":0}]
[{"$nulls":11},"Kp pieniężne i wkład rzeczowy",null,{"$f":"SUMIFS($G$5:OFFSET(suma1,-1,0),$H$5:OFFSET(suma1,-1,1),$L22)","v":0}]
[]
[]
[]
[]
[{"$nulls":11},"NPV 1. inwestycje dotyczące projektu",{"$f":"N20","v":0}]
[{"$nulls":11},"wartość początkowa śr. Trwałych",{"$f":"N20","v":0}]
[]
[]
[{"$nulls":7},{"$f":"IF(G32=suma1,IF(G32>0,\"wybierz z listy\",\"\"),\"\")","v":""}]
[{"$nulls":7},""]
[{"$nulls":7},""]
[{"$nulls":7},""]
[{"$nulls":7},""]
[{"$nulls":7},""]
[{"$nulls":7},""]

{"sheet":"Przychody","index":1,"n_rows":17,"n_cols":9,"rows_kept":17,"merged":[[1,0,1,8],[2,0,4,0],[2,1,4,1],[2,2,3,4],[2,5,3,6],[2,7,3,8],[12,0,12,1],[13,0,13,1],[13,2,13,4],[13,5,13,6],[13,7,13,8],[14,0,14,1],[14,2,14,8],[16,0,16,8],[17,0,26,8]]}
["IX. Projekcja finansowa dla operacji"]
["9.1 Prognoza poziomu cen i wielkości sprzedaży"]
["Produtk/ usługa/ towar","Jednostka miary","Rok n+1 ",null,null,"Rok n + 2",null,"Rok n+3"]
[]
[null,null,"Cena jednostkowa sprzedaży ","Średnia cena jednostkowa sprzedaży konkurencji","Wielkość sprzedaży","Cena jednostkowa sprzedaży","Wielkość sprzedaży","Cena jednostkowa sprzedaży","Wielkość sprzedaży"]
{"$rows_empty":7}
["Łącznie suma wierszy:",{"$nulls":3},{"$f":"SUM(E6:E12)","v":0},null,{"$f":"SUM(G6:G12)","v":0},null,{"$f":"SUM(I6:I12)","v":0}]
["(cena jednostk. sprzedaży) x (wielk. sprzedaży)",null,{"$f":"TEXT('NPV + wsk_rent'!C5,0) &\" = A\"","v":"0 = A"},null,null,{"$f":"TEXT('NPV + wsk_rent'!D5,0) &\" = B\"","v":"0 = B"},null,{"$f":"TEXT('NPV + wsk_rent'!E5,0) &\" = C\"","v":"0 = C"}]
["Suma A+B+C",null,{"$f":"SUM('NPV + wsk_rent'!C5:E5)","v":0}]
[]
["Należy uzasadnić prognozę cen (przedstawić założenia przyjęte na potrzeby opracowania powyższych prognoz ceny sprzedaży własnych produktów / usług / towarów) i wielkości sprzedaży. Jeśli w okresie trwałości operacji mogą wystąpić jakiekolwiek zmiany cen, należy podać wartość uśrednioną, w poniższym opisie zaznaczając, jak w skali roku zmieniała się będzie dana wartość. Należy podać uzasadnienie odnoszące się do sytuacji rynkowej, jakości, zmian w kosztach, marży produktu itp."]

{"sheet":"RZS","index":2,"n_rows":32,"n_cols":11,"rows_kept":32,"merged":[[1,0,1,4],[16,6,16,10],[31,0,31,4],[32,0,45,4]]}
["9.2 Rachunek zysków i strat"]
["Na podstawie danych z tabel „prognoza przychodów ze sprzedaży” i „koszty” należy przedstawić rachunek zysków i strat dla okresu bieżącego oraz na dwa następne lata."]
["Wyszczególnienie","Suma: \n(Rok N + Rok N-1 + Rok N-2)","Rok n+1","Rok n+2","Rok n+3"]
["A.      PRZYCHODY "]
["1.     Przychody ze sprzedaży produktów / usług / towarów",0,{"$f":"SUMPRODUCT(Przychody!C6:OFFSET(uzasadnienie,-4,2),Przychody!E6:OFFSET(uzasadnienie,-4,4))","v":0},{"$f":"SUMPRODUCT(Przychody!F6:OFFSET(uzasadnienie,-4,5),Przychody!G6:OFFSET(uzasadnienie,-4,6))","v":0},{"$f":"SUMPRODUCT(Przychody!H6:OFFSET(uzasadnienie,-4,7),Przychody!I6:OFFSET(uzasadnienie,-4,8))","v":0}]
["2.      Inne przychody (jakie?)"]
[]
[]
["RAZEM PRZYCHODY",{"$f":"B5+B7+B8","v":0},{"$f":"C5+C7+C8","v":0},0,0]
["B.      KOSZTY "]
["1.     zużycie materiałów i energii"]
["2.     usługi obce (w tym m.in. czynsze, naprawy, konserwacje maszyn i budynków)"]
["3.     podatki i opłaty"]
["4.     wynagrodzenia i pochodne"]
["5.     koszty finansowe"]
["6.     zakup towarów"]
["7.     ubezpieczenia majątkowe",{"$nulls":5},"Tabela pomocnicza nr 2 - amortyzacja"]
["8.     pozostałe koszty",{"$nulls":6},"Suma: (Rok N + Rok N-1 + Rok N-2)","Rok n+1","Rok n+2","Rok n+3"]
[{"$f":"IF(AND(B19=\"\",C19=\"\",D19=\"\",E19=\"\"),\"\",G19)","v":""},{"$f":"IF(H19=0,\"\",H19)","v":""},{"$f":"IF(I19=0,\"\",I19)","v":""},"","",null,"8.1 pozostałe koszty – amortyzacja ",0,0,0,0]
[{"$f":"IF(AND(B20=\"\",C20=\"\",D20=\"\",E20=\"\"),\"\",G20)","v":""},{"$f":"IF(H20=0,\"\",H20)","v":""},"","","",null,"8.2 amortyzacja (pozostała)",0,0,0,0]
{"$rows_empty":7}
["RAZEM KOSZTY",{"$f":"SUM(B11:B17)+SUM(B19:B27)","v":0},{"$f":"SUM(C11:C17)+SUM(C19:C27)","v":0},{"$f":"SUM(D11:D17)+SUM(D19:D27)","v":0},0]
["C.      Dochód (strata) brutto A - B",{"$f":"B9-B28","v":0},{"$f":"C9-C28","v":0},0,0]
["D.      Podatek dochodowy"]
["E.      Zysk netto: C – D",{"$f":"B29-B30","v":0},{"$f":"C29-C30","v":0},0,0]
["Uzasadnienie (założenia) dla wymienionych pozycji kosztowych:"]

{"sheet":"NPV + wsk_rent","index":3,"n_rows":20,"n_cols":6,"rows_kept":20,"merged":[[1,0,2,0],[1,2,2,2],[1,3,2,3],[1,4,2,4],[7,1,8,1],[7,2,8,2],[7,3,8,3],[7,4,8,4],[14,1,14,2],[14,3,14,4],[17,0,18,0],[17,1,18,1],[17,2,18,2],[17,3,18,3],[17,4,18,4]]}
["9.3 Zaktualizowana wartość netto"]
["Specyfikacja","Suma:","Rok N+1","Rok N+2","Rok N+3"]
[null,"(Rok N + Rok N-1 + Rok N-2)"]
["1. Inwestycje dotyczące projektu",{"$f":"Zakres!M27","v":0}]
["2. Przychody ze sprzedaży ",{"$f":"RZS!B5","v":0},{"$f":"SUMPRODUCT(Przychody!C6:OFFSET(uzasadnienie,-4,2),Przychody!E6:OFFSET(uzasadnienie,-4,4))","v":0},{"$f":"SUMPRODUCT(Przychody!F6:OFFSET(uzasadnienie,-4,5),Przychody!G6:OFFSET(uzasadnienie,-4,6))","v":0},{"$f":"SUMPRODUCT(Przychody!H6:OFFSET(uzasadnienie,-4,7),Przychody!I6:OFFSET(uzasadnienie,-4,8))","v":0}]
["3. Koszty działalności objętej projektem ",{"$f":"RZS!B28","v":0},{"$f":"RZS!C28","v":0},{"$f":"RZS!D28","v":0},{"$f":"RZS!E28","v":0}]
["4. Dochód brutto",{"$f":"B5-B6","v":0},{"$f":"C5-C6","v":0},0,0]
["5. Podatek dochodowy, wg stopy:",{"$f":"RZS!B30","v":0},{"$f":"RZS!C30","v":0},{"$f":"RZS!D30","v":0},{"$f":"RZS!E30","v":0}]
[]
["6. Dochód netto",{"$f":"B7-B8","v":0},{"$f":"C7-C8","v":0},0,0]
["7. Wartość końcowa",{"$nulls":3},{"$f":"Zakres!M28-SUM(RZS!H19:K19)","v":0}]
["8. Amortyzacja",{"$f":"IF(RZS!B19=\"\",0,RZS!B19)+IF(RZS!B20=\"\",0,RZS!B20)","v":0},{"$f":"IF(RZS!C19=\"\",0,RZS!C19)+IF(RZS!C20=\"\",0,RZS!C20)","v":0},{"$f":"IF(RZS!D19=\"\",0,RZS!D19)+IF(RZS!D20=\"\",0,RZS!D20)","v":0},{"$f":"IF(RZS!E19=\"\",0,RZS!E19)+IF(RZS!E20=\"\",0,RZS!E20)","v":0}]
["9. Saldo bieżące",{"$f":"(-B4)+B10+B12","v":0},0,0,{"$f":"(-E4)+E10+E12+E11","v":0}]
["10. Stopa dyskonta / czynnik dyskontujący",{"$f":"1/(1+$F14)^0","v":1},{"$f":"ROUND(1/(1+$F14)^1,4)","v":0.9725},{"$f":"ROUND(1/(1+$F14)^2,4)","v":0.9457},{"$f":"ROUND(1/(1+$F14)^3,4)","v":0.9197},{"v":0.0283,"d":"2.83%"}]
["NPV",{"$f":"SUMPRODUCT(B13:E13,B14:E14)","v":{"v":0,"d":"0.00 zł"}}]
[]
["9.4 Wskaźnik rentowności sprzedaży"]
[null,"Suma: \n(Rok N + Rok N-1 + Rok N-2)","Rok N+1","Rok N+2","Rok N+3"]
[]
["wskaźnik rentowności sprzedaży brutto (dla operacji)",{"$f":"IF(RZS!B5=0,\"\",RZS!B29/RZS!B5*100%)","v":""},{"$f":"IF(RZS!C5=0,\"\",RZS!C29/RZS!C5*100%)","v":""},{"$f":"IF(RZS!D5=0,\"\",RZS!D29/RZS!D5*100%)","v":""},{"$f":"IF(RZS!E5=0,\"\",RZS!E29/RZS!E5*100%)","v":""}]